lending/lending_fUSD_20251114
["ID","MTS","AMOUNT","RATE_DAILY","PERIOD"]
[393939507,1763116241208,-701.23159592,0.00017627,2]
[393939508,1763116241218,-701.23159592,0.00017627,2]
[393939509,1763116241228,-701.23159592,0.00017627,2]
[393939510,1763116241237,-701.23159592,0.00017627,2]
[393939511,1763116241247,-701.23159592,0.00017627,2]
[393939512,1763116241256,-701.23159592,0.00017627,2]
[393939513,1763116241266,-701.23159592,0.00017627,2]
[393939514,1763116241275,-701.23159592,0.00017627,2]
[393939515,1763116241285,-701.23159592,0.00017627,2]
[393939516,1763116241297,-701.23159592,0.00017627,2]
[393939517,1763116241307,-701.23159592,0.00017627,2]
[393939518,1763116241318,-701.23159592,0.00017627,2]
[393939519,1763116241327,-701.23159592,0.00017627,2]
[393939520,1763116241336,-701.23159592,0.00017627,2]
[393939521,1763116241346,-701.23159592,0.00017627,2]
[393939522,1763116241355,-701.23159592,0.00017627,2]
[393939523,1763116241365,-701.23159592,0.00017627,2]
[393939524,1763116241374,-701.23159592,0.00017627,2]
[393939525,1763116241384,-701.23159592,0.00017627,2]
[393939526,1763116241394,-701.23159592,0.00017627,2]
[393939527,1763116241404,-701.23159592,0.00017627,2]
[393939528,1763116241414,-263.22436092,0.00017627,2]
[393939529,1763116241425,-461.5848737,0.00017627,2]
[393939530,1763116241435,-500.0,0.00017627,2]
[393939531,1763116241445,-683.70080603,0.00017627,2]
[393939532,1763116241454,-683.70080603,0.00017627,2]
[393939533,1763116241464,-683.70080603,0.00017627,2]
[393939534,1763116241474,-683.70080603,0.00017627,2]
[393939535,1763116241483,-683.70080603,0.00017627,2]
[393939536,1763116241492,-683.70080603,0.00017627,2]
[393939537,1763116241501,-683.70080603,0.00017627,2]
[393939538,1763116241511,-683.70080603,0.00017627,2]
[393939539,1763116241520,-683.70080603,0.00017627,2]
[393939540,1763116241528,-683.70080603,0.00017627,2]
[393939541,1763116241537,-683.70080603,0.00017627,2]
[393939542,1763116241546,-683.70080603,0.00017627,2]
[393939543,1763116241555,-683.70080603,0.00017627,2]
[393939544,1763116241565,-683.70080603,0.00017627,2]
[393939545,1763116241574,-683.70080603,0.00017627,2]
[393939546,1763116241583,-683.70080603,0.00017627,2]
[393939547,1763116241592,-683.70080603,0.00017627,2]
[393939548,1763116241601,-683.70080603,0.00017627,2]
[393939549,1763116241610,-683.70080603,0.00017627,2]
[393939550,1763116241620,-683.70080603,0.00017627,2]
[393939551,1763116241629,-683.70080603,0.00017627,2]
[393939552,1763116241648,-683.70080603,0.00017627,2]
[393939553,1763116241659,-683.70080603,0.00017627,2]
[393939554,1763116241670,-683.70080603,0.00017627,2]
[393939555,1763116241679,-683.70080603,0.00017627,2]
[393939556,1763116241690,-683.70080603,0.00017627,2]
[393939557,1763116241699,-683.70080603,0.00017627,2]
[393939558,1763116241710,-683.70080603,0.00017627,2]
[393939559,1763116241720,-683.70080603,0.00017627,2]
[393939560,1763116241729,-683.70080603,0.00017627,2]
[393939561,1763116241739,-683.70080603,0.00017627,2]
[393939562,1763116241749,-683.70080603,0.00017627,2]
[393939563,1763116241758,-500.0,0.00017627,2]
[393939564,1763116241769,-500.0,0.00017627,2]
[393939565,1763116241779,-420000.0,0.00017628,2]
[393939566,1763116241788,-300.0,0.00017643,2]
[393939567,1763116241799,-1472.61815806,0.00017646,2]
[393939568,1763116241808,-1712.497652,0.00017656,2]
[393939569,1763116241818,-500.0,0.00017673,2]
[393939570,1763116241827,-544.54070605,0.00017673,2]
[393939571,1763116241837,-500.0,0.00017673,2]
[393939572,1763116241846,-500.0,0.00017673,2]
[393939573,1763116241856,-1472.61815806,0.00017682,2]
[393939574,1763116241866,-1472.61815806,0.00017718,2]
[393939575,1763116241875,-150.99,0.00017728,2]
[393939576,1763116241885,-9999.99,0.00017728,2]
[393939577,1763116241895,-9999.99,0.00017728,2]
[393939578,1763116241906,-151.0,0.00017728,2]
[393939579,1763116241916,-166.66,0.00017754,2]
[393939580,1763116241926,-1472.61815806,0.00017755,2]
[393939581,1763116241935,-151.0,0.00017767,2]
[393939582,1763116241945,-1472.61815806,0.00017791,2]
[393939583,1763116241954,-151.0,0.00017797,2]
[393939584,1763116241964,-584.712,0.00017798,2]
[393939585,1763116241973,-151.0,0.00017799,2]
[393939586,1763116241983,-2000.0,0.000178,2]
[393939587,1763116241994,-352.89423888,0.00017804,2]
[393939588,1763116242008,-776.74092,0.0001782,2]
[393939589,1763116242018,-1472.61815806,0.00017827,2]
[393939590,1763116242027,-483.23,0.00017832,2]
[393939591,1763116242037,-1472.61815806,0.00017864,2]
[393939592,1763116242047,-1597.4048,0.000179,2]
[393939593,1763116242058,-1493.62190285,0.000179,2]
[393939594,1763116242067,-1228.0,0.000179,2]
[393939595,1763116242080,-161.44807859,0.000179,2]
[393939596,1763116242090,-4698.74816903,0.000179,2]
[393939597,1763116242099,-1472.61815806,0.000179,2]
[393939598,1763116242110,-521.6616445,0.000179,2]
[393939599,1763116242120,-229.13724978,0.000179,2]
[393939600,1763116242131,-151.43976194,0.000179,3]
[393939601,1763116242141,-303.79750486,0.000179,2]
[393939602,1763116242151,-500.0,0.000179,2]
[393939603,1763116242161,-500.0,0.000179,2]
[393939604,1763116242171,-500.0,0.000179,2]
[393939605,1763116242181,-500.0,0.000179,2]
[393939606,1763116242191,-500.0,0.000179,2]
[393939607,1763116242204,-6103.97369591,0.000179,2]
[393939608,1763116242218,-500.0,0.00017973,2]
[393939609,1763116242228,-354.35067401,0.00017973,2]
[393939610,1763116242238,-355.7704534,0.00017973,2]
[393939611,1763116242247,-503.73300027,0.00017973,2]
[393939612,1763116242257,-150.85217549,0.00017973,2]
[393939613,1763116242268,-501.25798024,0.00017973,2]
[393939614,1763116242278,-501.78019662,0.00017973,2]
[393939615,1763116242288,-505.00673889,0.00017973,2]
[393939616,1763116242298,-331.29430014,0.00017973,2]
[393939617,1763116242308,-196.70805248,0.00017973,2]
[393939618,1763116242318,-2621.36612622,0.0001799,2]
[393939619,1763116242328,-2621.36612622,0.0001799,2]
[393939620,1763116242338,-309.52096424,0.00017999,2]
[393939621,1763116242347,-300.0,0.00017999,2]
[393939622,1763116242356,-300.0,0.00017999,2]
[393939623,1763116242366,-300.0,0.00017999,2]
[393939624,1763116242375,-150.0,0.00017999,2]
[393939625,1763116242384,-500.0,0.00017999,2]
[393939626,1763116242395,-500.0,0.00017999,2]
[393939627,1763116242408,-500.0,0.00017999,2]
[393939628,1763116242418,-914.0,0.00017999,2]
[393939629,1763116242427,-3082220.90388792,0.00018,2]
[393939630,1763116242437,-181.0,0.00018,2]
[393939631,1763116242447,-933972.70029862,0.00018,2]
[393939632,1763116242458,-161321.2782346,0.00018,2]
[393939633,1763116242469,-986286.50064281,0.00018,2]
[393939634,1763116242485,-8549.01464297,0.00018,2]
[393939644,1763116243103,-3185.0,0.00018,2]
[393939645,1763116243115,-648.93851997,0.00018,2]
[393939646,1763116243129,-466.7936093,0.00018,2]
[393939649,1763116246094,-426.55067345,0.00018,2]
[393939650,1763116246204,-7835.60501169,0.00018,2]
[393939651,1763116246372,-462.70739025,0.00018,2]
[393939652,1763116246385,-474.4368,0.00018,2]
[393939653,1763116246421,-2158.22510503,0.00018,2]
[393939654,1763116246433,-11994.97478811,0.00018,2]
[393939655,1763116246477,-11041.79196783,0.00018,2]
[393939656,1763116246535,-794.30477733,0.00018,2]
[393940198,1763116280260,553.0,0.00030137,120]
[393940199,1763116332337,184.25705264,0.00014999,2]
[393940200,1763116332372,500.0,0.00014999,2]
[393940201,1763116332547,173.10941159,0.00014999,2]
[393940202,1763116334173,500.0,0.00016438,2]
[393940203,1763116334208,500.0,0.00014999,2]
[393940204,1763116334246,500.0,0.00016438,2]
[393940205,1763116334281,500.0,0.00014999,2]
[393940206,1763116334523,500.0,0.00016438,2]
[393940207,1763116334555,500.0,0.00014999,2]
[393940208,1763116334591,500.0,0.00016438,2]
[393940209,1763116334621,500.0,0.00014999,2]
[393940210,1763116334653,500.0,0.00016438,2]
[393940211,1763116334684,500.0,0.00014999,2]
[393940212,1763116334716,500.0,0.00016438,2]
[393940213,1763116334746,500.0,0.00014999,2]
[393940214,1763116334792,500.0,0.00016438,2]
[393940215,1763116334844,500.0,0.00014999,2]
[393940216,1763116334887,500.0,0.00014999,2]
[393940217,1763116334921,500.0,0.00016438,2]
[393940218,1763116334953,500.0,0.00014999,2]
[393940219,1763116334984,539.02272359,0.00016438,2]
[393940220,1763116335016,103.62081218,0.00014999,2]
[393940221,1763116335042,396.37918782,0.00014999,2]
[393940222,1763116335080,500.0,0.00014999,2]
[393940223,1763116335112,500.0,0.00016438,2]
[393940224,1763116335146,500.0,0.00014999,2]
[393940225,1763116335180,500.0,0.00014999,2]
[393940226,1763116335221,500.0,0.00014999,2]
[393940227,1763116335252,500.0,0.00014999,2]
[393940228,1763116335313,500.0,0.00014999,2]
[393940229,1763116335344,500.0,0.00014999,2]
[393940230,1763116335374,500.0,0.00014999,2]
[393940231,1763116335404,500.0,0.00014999,2]
[393940232,1763116335439,471.51329396,0.00014999,2]
[393940235,1763116361897,151.0,0.00016438,2]
[393940236,1763116371605,178.01,0.00013615,2]
[393940237,1763116388703,1597.4048,0.000149,2]
[393940283,1763116565678,500.0,0.00014999,2]
[393940286,1763116574771,159.300332,0.00041122,120]
[393940287,1763116575898,151.0,0.00016438,2]
[393940288,1763116579223,50884.79586729,0.00041122,98]
[393940293,1763116663201,151.0,0.00016438,2]
[393940294,1763116664328,198.55591477,0.00016438,2]
[393940298,1763116716265,670.85097775,0.000154,2]
[393940299,1763116716562,666.0,0.000154,2]
[393940300,1763116716846,666.0,0.000154,2]
[393940301,1763116717138,666.0,0.000154,2]
[393940302,1763116717442,666.0,0.000154,2]
[393940323,1763116896640,-200.0,0.00016671,2]
[393940324,1763116916345,406.185774,0.00016606,2]
[393940332,1763117055658,161.0,0.000164,2]
[393940333,1763117056396,299.46116931,0.000164,2]
[393940334,1763117129909,150.0,0.00016642,2]
[393940337,1763117268198,184.09,0.00016666,2]
[393940376,1763117432372,-150.0,0.0001669,2]
[393940377,1763117432382,-300.0,0.00016785,2]
[393940378,1763117432392,-18150.12,0.00016786,2]
[393940379,1763117432401,-150.0,0.00016787,2]
[393940380,1763117432410,-174.92672463,0.00016884,2]
[393940381,1763117432419,-500.0,0.00016884,2]
[393940382,1763117432429,-1852.42,0.00016917,2]
[393940383,1763117432443,-4703.6,0.00016984,2]
[393940384,1763117432452,-224.93654492,0.00017,2]
[393940385,1763117432461,-224.93654491,0.00017,2]
[393940386,1763117432471,-1200.0,0.00017299,2]
[393940387,1763117432480,-2000.0,0.000173,2]
[393940388,1763117432491,-9999.99,0.000173,2]
[393940389,1763117432500,-174.92672462,0.00017528,2]
[393940390,1763117432509,-262.0,0.00017567,2]
[393940391,1763117432520,-352.3136,0.00017568,2]
[393940392,1763117432528,-575.0,0.00017568,2]
[393940393,1763117432538,-608.0,0.00017568,2]
[393940394,1763117432547,-3429.0,0.00017568,2]
[393940395,1763117432556,-1318.0,0.00017568,2]
[393940396,1763117432566,-1598.0,0.00017568,2]
[393940397,1763117432578,-821.0,0.00017568,2]
[393940398,1763117432588,-1190.0,0.00017568,2]
[393940399,1763117432597,-907.0,0.00017568,2]
[393940400,1763117432607,-814.0,0.00017568,2]
[393940401,1763117432616,-1275.0,0.00017568,2]
[393940402,1763117432625,-6669.0,0.00017568,2]
[393940403,1763117432635,-6486.0,0.00017568,2]
[393940404,1763117432644,-2145.0,0.00017568,2]
[393940405,1763117432654,-166.66,0.00017583,2]
[393940406,1763117432663,-500.0,0.00017627,2]
[393940407,1763117432672,-559.89141373,0.00017627,2]
[393940408,1763117432684,-500.0,0.00017627,2]
[393940409,1763117432694,-607.94592155,0.00017627,2]
[393940410,1763117432704,-150.0,0.00017628,2]
[393940411,1763117432714,-500.0,0.00017628,2]
[393940412,1763117432723,-500.0,0.00017628,2]
[393940413,1763117432732,-500.0,0.00017628,2]
[393940414,1763117432741,-914.0,0.00017628,2]
[393940415,1763117432750,-150.0,0.00017628,2]
[393940416,1763117432760,-150.0,0.00017628,2]
[393940417,1763117432769,-500.0,0.00017628,2]
[393940418,1763117432778,-500.0,0.00017628,2]
[393940419,1763117432788,-704.0,0.00017628,2]
[393940420,1763117432797,-151.0,0.00017628,2]
[393940421,1763117432807,-151.0,0.00017628,2]
[393940422,1763117432816,-151.0,0.00017628,2]
[393940423,1763117432825,-151.0,0.00017628,2]
[393940424,1763117432835,-151.0,0.00017628,2]
[393940425,1763117432845,-151.0,0.00017628,2]
[393940426,1763117432854,-151.0,0.00017628,2]
[393940427,1763117432864,-151.0,0.00017628,2]
[393940428,1763117432873,-151.0,0.00017628,2]
[393940429,1763117432883,-151.0,0.00017628,2]
[393940430,1763117432892,-151.0,0.00017628,2]
[393940431,1763117432901,-151.0,0.00017628,2]
[393940432,1763117432910,-151.0,0.00017628,2]
[393940433,1763117432920,-151.0,0.00017628,2]
[393940434,1763117432929,-240.89319949,0.00017628,2]
[393940435,1763117432941,-151.0,0.00017628,2]
[393940436,1763117432951,-151.0,0.00017628,2]
[393940437,1763117432960,-151.0,0.00017628,2]
[393940438,1763117432970,-151.0,0.00017628,2]
[393940439,1763117432989,-151.0,0.00017628,2]
[393940441,1763117433000,-151.0,0.00017628,2]
[393940443,1763117433010,-151.0,0.00017628,2]
[393940444,1763117433020,-151.0,0.00017628,2]
[393940445,1763117433030,-151.0,0.00017628,2]
[393940446,1763117433039,-151.0,0.00017628,2]
[393940447,1763117433049,-151.0,0.00017628,2]
[393940448,1763117433058,-151.0,0.00017628,2]
[393940449,1763117433067,-151.0,0.00017628,2]
[393940450,1763117433076,-151.0,0.00017628,2]
[393940451,1763117433087,-151.0,0.00017628,2]
[393940452,1763117433096,-151.0,0.00017628,2]
[393940453,1763117433105,-151.0,0.00017628,2]
[393940454,1763117433115,-151.0,0.00017628,2]
[393940455,1763117433125,-292.76192798,0.00017628,2]
[393940456,1763117433134,-470.7871,0.0001763,2]
[393940457,1763117433144,-5214.18517116,0.00017639,2]
[393940458,1763117433153,-150.0,0.00017655,2]
[393940459,1763117433163,-500.0,0.00017655,2]
[393940460,1763117433173,-500.0,0.00017655,2]
[393940461,1763117433182,-500.0,0.00017655,2]
[393940462,1763117433191,-914.0,0.00017655,2]
[393940463,1763117433201,-150.0,0.00017655,2]
[393940464,1763117433210,-500.0,0.00017655,2]
[393940465,1763117433220,-500.0,0.00017655,2]
[393940466,1763117433230,-704.0,0.00017655,2]
[393940467,1763117433239,-5214.18517107,0.00017668,2]
[393940468,1763117433249,-500.0,0.00017673,2]
[393940469,1763117433258,-500.0,0.00017673,2]
[393940471,1763117433268,-500.0,0.00017673,2]
[393940473,1763117433278,-500.0,0.00017673,2]
[393940475,1763117433287,-500.96758526,0.00017673,2]
[393940476,1763117433297,-500.0,0.00017673,2]
[393940477,1763117433306,-501.20341473,0.00017673,2]
[393940478,1763117433315,-500.0,0.00017673,2]
[393940479,1763117433325,-501.21542673,0.00017673,2]
[393940480,1763117433334,-608.37698903,0.00017673,2]
[393940481,1763117433344,-544.54070605,0.00017673,2]
[393940482,1763117433353,-500.0,0.00017673,2]
[393940483,1763117433362,-456.94990176,0.00017673,2]
[393940484,1763117433385,-40.37464045,0.00017673,2]
[393940485,1763117433395,-532.79675222,0.00017673,2]
[393940486,1763117433404,-506.3715754,0.00017673,2]
[393940487,1763117433414,-200.41214143,0.00017673,2]
[393940488,1763117433423,-500.0,0.00017673,2]
[393940489,1763117433433,-500.0,0.00017673,2]
[393940490,1763117433446,-431.70775828,0.00017673,2]
[393940491,1763117433456,-501.05164124,0.00017673,2]
[393940492,1763117433466,-500.0,0.00017673,2]
[393940493,1763117433476,-151.0,0.00017681,2]
[393940494,1763117433487,-151.0,0.00017681,2]
[393940495,1763117433496,-200.0,0.00017683,2]
[393940496,1763117433505,-500.0,0.00017683,2]
[393940497,1763117433517,-500.0,0.00017683,2]
[393940498,1763117433527,-500.0,0.00017683,2]
[393940499,1763117433537,-914.0,0.00017683,2]
[393940500,1763117433546,-200.0,0.00017683,2]
[393940501,1763117433556,-500.0,0.00017683,2]
[393940502,1763117433566,-500.0,0.00017683,2]
[393940503,1763117433576,-704.0,0.00017683,2]
[393940504,1763117433586,-151.0,0.00017683,2]
[393940505,1763117433595,-151.0,0.00017686,2]
[393940506,1763117433605,-5214.18517107,0.00017697,2]
[393940507,1763117433614,-1228.0,0.000177,2]
[393940508,1763117433624,-500.0,0.00017707,2]
[393940509,1763117433633,-150.0,0.00017707,2]
[393940510,1763117433643,-500.0,0.00017707,2]
[393940511,1763117433652,-150.0,0.00017707,2]
[393940512,1763117433662,-500.0,0.00017707,2]
[393940513,1763117433671,-500.0,0.00017707,2]
[393940514,1763117433680,-500.0,0.0001771,2]
[393940515,1763117433689,-500.0,0.0001771,2]
[393940516,1763117433698,-500.0,0.0001771,2]
[393940517,1763117433707,-914.0,0.0001771,2]
[393940518,1763117433716,-500.0,0.0001771,2]
[393940519,1763117433726,-500.0,0.0001771,2]
[393940520,1763117433735,-704.0,0.0001771,2]
[393940521,1763117433745,-867.015,0.00017718,2]
[393940522,1763117433754,-5214.18517107,0.00017726,2]
[393940523,1763117433764,-471.17658812,0.00017727,2]
[393940524,1763117433773,-382.26041673,0.00017727,2]
[393940525,1763117433782,-1535.53,0.00017728,2]
[393940526,1763117433791,-7759.83196205,0.00017728,2]
[393940535,1763117438395,-560.0,0.00017568,2]
[393940537,1763117438405,-290.34679112,0.00017635,2]
[393940539,1763117438414,-7380.15803795,0.00017728,2]
[393940540,1763117438424,-499.99,0.00017728,2]
[393940541,1763117438435,-903.59,0.00017728,2]
[393940542,1763117438452,-9601.88,0.00017728,2]
[393940543,1763117438462,-7477.28517044,0.00017728,2]
[393940547,1763117440229,-972.47484648,0.00017728,2]
[393940550,1763117440341,-1550.22998308,0.00017728,2]
[393940552,1763117440351,-1223.88,0.00017728,2]
[393940555,1763117440360,-150.99,0.00017728,2]
[393940556,1763117440370,-501.25017813,0.00017729,2]
[393940558,1763117440379,-580.1698994,0.00017729,2]
[393940560,1763117440389,-500.0,0.00017729,2]
[393940562,1763117440398,-500.0,0.00017729,2]
[393940564,1763117440408,-500.0,0.00017729,2]
[393940566,1763117440417,-500.0,0.00017729,2]
[393940568,1763117440426,-500.0,0.00017729,2]
[393940570,1763117440435,-500.0,0.00017729,2]
[393940571,1763117440449,-329.82361168,0.00017729,2]
[393940572,1763117440458,-267.58229171,0.00017729,2]
[393940574,1763117440468,-420000.0,0.0001773,2]
[393940576,1763117440477,-500.0,0.00017734,2]
[393940578,1763117440487,-500.0,0.00017734,2]
[393940579,1763117440499,-500.0,0.00017734,2]
[393940581,1763117440509,-500.0,0.00017734,2]
[393940583,1763117440520,-500.0,0.00017738,2]
[393940585,1763117440531,-500.0,0.00017738,2]
[393940588,1763117440541,-500.0,0.00017738,2]
[393940590,1763117440551,-914.0,0.00017738,2]
[393940591,1763117440560,-500.0,0.00017738,2]
[393940593,1763117440571,-500.0,0.00017738,2]
[393940595,1763117440581,-704.0,0.00017738,2]
[393940598,1763117440591,-1712.497652,0.00017749,2]
[393940600,1763117440602,-159.10789855,0.00017754,2]
[393940601,1763117440612,-5214.18517107,0.00017755,2]
[393940603,1763117440622,-500.0,0.00017762,2]
[393940605,1763117440631,-505.68760807,0.00017762,2]
[393940607,1763117440641,-500.0,0.00017762,2]
[393940609,1763117440650,-500.0,0.00017762,2]
[393940611,1763117440660,-500.0,0.00017765,2]
[393940613,1763117440669,-500.0,0.00017765,2]
[393940615,1763117440678,-500.0,0.00017765,2]
[393940617,1763117440687,-914.0,0.00017765,2]
[393940619,1763117440696,-500.0,0.00017765,2]
[393940621,1763117440706,-500.0,0.00017765,2]
[393940623,1763117440715,-704.0,0.00017765,2]
[393940625,1763117440724,-500.98759368,0.00017773,2]
[393940627,1763117440734,-503.73300027,0.00017773,2]
[393940629,1763117440743,-150.85217549,0.00017773,2]
[393940632,1763117440753,-501.78019662,0.00017773,2]
[393940635,1763117440762,-505.00673889,0.00017773,2]
[393940638,1763117440773,-355.7704534,0.00017773,2]
[393940641,1763117440783,-500.0,0.00017773,2]
[393940644,1763117440793,-354.35067401,0.00017773,2]
[393940647,1763117440803,-501.25798024,0.00017773,2]
[393940650,1763117440812,-158.9633835,0.00017773,2]
[393940653,1763117440822,-5214.18517107,0.00017784,2]
[393940656,1763117440831,-500.0,0.00017789,2]
[393940659,1763117440841,-500.0,0.00017789,2]
[393940678,1763117441051,-500.0,0.00017789,2]
[393940679,1763117441061,-500.0,0.00017792,2]
[393940680,1763117441071,-500.0,0.00017792,2]
[393940681,1763117441080,-500.0,0.00017792,2]
[393940682,1763117441089,-914.0,0.00017792,2]
[393940683,1763117441098,-500.0,0.00017792,2]
[393940684,1763117441107,-500.0,0.00017792,2]
[393940685,1763117441117,-704.0,0.00017792,2]
[393940687,1763117441126,-1000.0,0.000178,2]
[393940688,1763117441135,-1019.2721,0.000178,2]
[393940689,1763117441144,-500.0,0.00017808,2]
[393940691,1763117441154,-5214.18517107,0.00017813,2]
[393940692,1763117441164,-19221.98705932,0.00017813,2]
[393940693,1763117441173,-500.0,0.00017817,2]
[393940694,1763117441183,-500.0,0.00017817,2]
[393940695,1763117441192,-500.0,0.00017817,2]
[393940696,1763117441201,-380.79144782,0.0001782,2]
[393940697,1763117441210,-500.0,0.0001782,2]
[393940698,1763117441219,-500.0,0.0001782,2]
[393940699,1763117441228,-914.0,0.0001782,2]
[393940700,1763117441238,-500.0,0.0001782,2]
[393940701,1763117441248,-584.0,0.0001782,2]
[393940702,1763117441257,-704.0,0.0001782,2]
[393940703,1763117441267,-1418.31765,0.0001782,2]
[393940704,1763117441276,-500.0,0.00017829,2]
[393940705,1763117441285,-500.0,0.00017829,2]
[393940706,1763117441294,-510.26419869,0.00017829,2]
[393940707,1763117441303,-66856.79138936,0.0001783,2]
[393940708,1763117441313,-528.9962114,0.00017835,2]
[393940709,1763117441322,-5214.18517107,0.00017842,2]
[393940710,1763117441331,-19221.98705932,0.00017842,2]
[393940711,1763117441340,-500.0,0.00017844,2]
[393940712,1763117441350,-573.64972731,0.00017844,2]
[393940713,1763117441359,-500.0,0.00017844,2]
[393940714,1763117441369,-500.0,0.00017847,2]
[393940715,1763117441378,-914.0,0.00017847,2]
[393940716,1763117441388,-500.0,0.00017847,2]
[393940717,1763117441397,-704.0,0.00017847,2]
[393940718,1763117441407,-5214.18517107,0.00017871,2]
[393940719,1763117441416,-19221.98705932,0.00017871,2]
[393940720,1763117441425,-500.0,0.00017871,2]
[393940721,1763117441434,-500.0,0.00017871,2]
[393940722,1763117441446,-500.0,0.00017873,2]
[393940723,1763117441455,-331.29430014,0.00017873,2]
[393940724,1763117441464,-196.70805248,0.00017873,2]
[393940725,1763117441473,-174.01365812,0.00017873,2]
[393940726,1763117441484,-500.0,0.00017875,2]
[393940727,1763117441493,-914.0,0.00017875,2]
[393940728,1763117441502,-400.0,0.00017875,2]
[393940729,1763117441512,-704.0,0.00017875,2]
[393940730,1763117441525,-500.0,0.00017899,2]
[393940731,1763117441534,-152.43712256,0.00017899,2]
[393940732,1763117441543,-1012.29411901,0.000179,2]
[393940733,1763117441552,-2500.0,0.000179,3]
[393940734,1763117441562,-1516.46786466,0.000179,2]
[393940735,1763117441571,-5214.18517107,0.000179,2]
[393940736,1763117441581,-19221.98705932,0.000179,2]
[393940737,1763117441590,-4698.74816903,0.000179,2]
[393940738,1763117441598,-151.43976194,0.000179,3]
[393940739,1763117441608,-521.6616445,0.000179,2]
[393940740,1763117441617,-339.56983353,0.000179,2]
[393940741,1763117441627,-303.79750486,0.000179,2]
[393940742,1763117441636,-229.13724978,0.000179,2]
[393940743,1763117441646,-816.34493775,0.000179,2]
[393940744,1763117441655,-6103.97369591,0.000179,2]
[393940745,1763117441666,-500.0,0.00017902,2]
[393940746,1763117441676,-914.0,0.00017902,2]
[393940747,1763117441685,-704.0,0.00017902,2]
[393940748,1763117441694,-500.0,0.00017926,2]
[393940749,1763117441703,-500.0,0.00017929,2]
[393940750,1763117441713,-914.0,0.00017929,2]
[393940751,1763117441722,-704.0,0.00017929,2]
[393940752,1763117441731,-1418.31766,0.0001793,2]
[393940753,1763117441741,-500.0,0.00017954,2]
[393940754,1763117441751,-500.0,0.00017957,2]
[393940755,1763117441760,-914.0,0.00017957,2]
[393940756,1763117441772,-704.0,0.00017957,2]
[393940757,1763117441781,-500.0,0.00017981,2]
[393940758,1763117441791,-605.791,0.00017982,2]
[393940759,1763117441801,-434.0,0.00017984,2]
[393940760,1763117441811,-914.0,0.00017984,2]
[393940761,1763117441820,-704.0,0.00017984,2]
[393940762,1763117441830,-480.68,0.00017989,2]
[393940763,1763117441840,-150.0,0.00017989,2]
[393940764,1763117441849,-1747.57741749,0.0001799,2]
[393940765,1763117441859,-1747.57741749,0.0001799,2]
[393940766,1763117441869,-1747.57741749,0.0001799,2]
[393940767,1763117441878,-300.0,0.00017999,2]
[393940768,1763117441888,-500.0,0.00017999,2]
[393940769,1763117441897,-500.0,0.00017999,2]
[393940770,1763117441907,-500.0,0.00017999,2]
[393940771,1763117441916,-414.79117042,0.00017999,2]
[393940772,1763117441926,-300.0,0.00017999,2]
[393940773,1763117441935,-500.0,0.00017999,2]
[393940774,1763117441944,-500.0,0.00017999,2]
[393940775,1763117441953,-500.0,0.00017999,2]
[393940776,1763117441962,-500.0,0.00017999,2]
[393940777,1763117441971,-500.0,0.00017999,2]
[393940778,1763117441981,-500.0,0.00017999,2]
[393940779,1763117441990,-628.66822249,0.00017999,2]